bitfinex/quotes_ETHUSD_20251023
["timestamp","ask_amount","ask_price","bid_price","bid_amount"]
[1761256054242,8.17845946,3831.9,3831.4,0.002]
[1761256055767,7.91795946,3831.9,3831.4,0.002]
[1761256057444,8.07585946,3831.9,3831.4,0.002]
[1761256057863,8.17545946,3831.9,3831.4,0.002]
[1761256062267,8.04505946,3831.9,3831.4,0.002]
[1761256063166,8.04605946,3831.9,3831.4,0.002]
[1761256064070,10.53994513,3831.9,3831.4,0.002]
[1761256064268,10.67625945,3831.9,3831.4,0.002]
[1761256064573,9.73757378,3831.9,3831.4,0.002]
[1761256067389,12.48457378,3831.9,3831.4,0.002]
[1761256068478,13.89233816,3831.9,3831.4,0.002]
[1761256068782,16.31494495,3831.9,3831.4,0.002]
[1761256069138,3.11709638,3831.1,3831.0,0.002]
[1761256069355,10.26746755,3831.1,3831.0,0.002]
[1761256069574,10.36706755,3831.1,3831.0,0.002]
[1761256071264,10.26746755,3831.1,3831.0,0.002]
[1761256071471,10.36706755,3831.1,3831.0,0.002]
[1761256071667,12.03297062,3831.1,3831.0,0.002]
[1761256072055,12.16337062,3831.1,3831.0,0.002]
[1761256072456,14.91037062,3831.1,3831.0,0.002]
[1761256073800,16.46557062,3831.1,3831.0,0.002]
[1761256074101,17.40039799,3831.1,3831.0,0.002]
[1761256075292,16.46557062,3831.1,3831.0,0.002]
[1761256078886,16.36597062,3831.1,3831.0,0.002]
[1761256079184,14.55192828,3831.1,3831.0,0.002]
[1761256079390,13.61897062,3831.1,3831.0,0.002]
[1761256081795,13.71857062,3831.1,3831.0,0.002]
[1761256084077,13.61897062,3831.1,3831.0,0.002]
[1761256084391,13.71857062,3831.1,3831.0,0.002]
[1761256085184,9.78859945,3831.1,3831.0,0.002]
[1761256086279,9.88819945,3831.1,3831.0,0.002]
[1761256087801,10.82115711,3831.1,3831.0,0.002]
[1761256088299,9.88819945,3831.1,3831.0,0.002]
[1761256090391,11.2904405,3831.1,3831.0,0.002]
[1761256090712,9.88819945,3831.1,3831.0,0.002]
[1761256091273,11.2904405,3831.1,3831.0,0.002]
[1761256093280,9.88819945,3831.1,3831.0,0.002]
[1761256094684,10.02455719,3831.1,3831.0,0.002]
[1761256096782,13.14628515,3831.1,3831.0,0.002]
[1761256097313,19.53628515,3831.1,3831.0,0.002]
[1761256098216,19.43668515,3831.1,3831.0,0.002]
[1761256098581,19.53628515,3831.1,3831.0,0.002]
[1761256098783,19.43668515,3831.1,3831.0,0.002]
[1761256098981,16.31495719,3831.1,3831.0,0.002]
[1761256099214,16.31495719,3831.1,3831.0,0.4747]
[1761256100116,16.31495719,3831.1,3831.0,0.002]
[1761256100527,16.31495719,3831.1,3831.0,0.4747]
[1761256100994,16.31495719,3831.1,3831.0,0.002]
[1761256101318,16.31495719,3831.1,3831.0,0.4747]
[1761256102416,16.31495719,3831.1,3831.0,0.002]
[1761256102589,16.31495719,3831.1,3831.0,0.4747]
[1761256104099,17.72178514,3831.1,3831.0,0.002]
[1761256104986,14.40178514,3831.1,3831.0,0.002]
[1761256105192,17.71278514,3831.1,3831.0,0.002]
[1761256105735,20.8345131,3831.1,3831.0,0.002]
[1761256108424,19.29132741,3831.1,3831.0,0.4306]
[1761256109131,16.16959945,3831.1,3831.0,0.4306]
[1761256110330,17.10645865,3831.1,3831.0,0.4306]
[1761256113724,17.10645865,3831.1,3831.0,0.002]
[1761256114724,17.10645865,3831.1,3831.0,0.4576]
[1761256115829,17.10645865,3831.1,3831.0,0.002]
[1761256116220,17.10645865,3831.1,3831.0,0.4576]
[1761256116528,16.16959945,3831.1,3831.0,0.002]
[1761256116733,17.10645865,3831.1,3831.0,0.002]
[1761256119118,17.10645865,3831.1,3831.0,0.4576]
[1761256119815,17.10645865,3831.1,3831.0,0.002]
[1761256122213,17.10645865,3831.1,3831.0,0.4576]
[1761256122619,17.10645865,3831.1,3831.0,0.002]
[1761256127245,17.66861767,3831.1,3831.0,0.002]
[1761256128143,15.17655847,3831.1,3831.0,0.002]
[1761256128446,16.11368456,3831.1,3831.0,0.002]
[1761256129923,15.60680456,3831.1,3831.0,0.002]
[1761256130122,16.11368456,3831.1,3831.0,0.4576]
[1761256130341,15.60680456,3831.1,3831.0,1.24178764]
[1761256130760,16.11368456,3831.1,3831.0,1.24178764]
[1761256130965,15.17655847,3831.1,3831.0,1.24178764]
[1761256131128,16.11368456,3831.1,3831.0,1.24178764]
[1761256131524,15.17655847,3831.1,3831.0,1.24178764]
[1761256132164,16.11368456,3831.1,3831.0,1.24178764]
[1761256132839,16.11368456,3831.1,3831.0,0.78618764]
[1761256133039,16.11368456,3831.1,3831.0,1.24178764]
[1761256133864,16.11368456,3831.1,3831.0,0.78618764]
[1761256134539,16.11368456,3831.1,3831.0,1.24178764]
[1761256135127,16.11368456,3831.1,3831.0,0.78618764]
[1761256135756,16.11368456,3831.1,3831.0,1.24178764]
[1761256136261,16.11368456,3831.1,3831.0,0.002]
[1761256137537,16.11368456,3831.1,3831.0,0.4576]
[1761256141126,16.11368456,3831.1,3831.0,1.24179378]
[1761256141859,15.17655847,3831.1,3831.0,1.24179378]
[1761256143029,13.5106554,3831.1,3831.0,1.24179378]
[1761256143431,10.90043902,3831.1,3831.0,1.24179378]
[1761256143968,14.21369598,3831.1,3831.0,1.24179378]
[1761256144331,14.21369598,3831.1,3831.0,0.4576]
[1761256144853,13.5106554,3831.1,3831.0,0.4576]
[1761256145055,10.39355902,3831.1,3831.0,0.4576]
[1761256146067,10.39355902,3831.1,3831.0,1.24174049]
[1761256147660,9.8314,3831.1,3831.0,1.24174049]
[1761256147851,3.4414,3831.1,3831.0,1.24174049]
[1761256148060,3.4414,3831.1,3831.0,3.85202501]
[1761256148237,3.311,3831.1,3831.0,3.85202501]
[1761256148780,3.311,3831.1,3831.0,1.24174049]
[1761256148941,3.311,3831.1,3831.0,3.85202501]
[1761256178522,3.311,3831.1,3831.0,3.86032501]
[1761256189618,0.1304,3831.3,3831.2,2.61014825]
[1761256190038,0.1304,3831.3,3831.2,3.07404825]
[1761256190339,0.1304,3831.3,3831.2,3.8580371]
[1761256193645,0.1304,3831.3,3831.2,3.3941371]
[1761256200429,0.1304,3831.3,3831.2,3.8527371]
[1761256202554,0.1304,3831.3,3831.2,3.3941371]
[1761256202850,0.2294,3831.3,3831.2,3.3941371]
[1761256204133,0.1304,3831.3,3831.2,3.3941371]
[1761256206855,0.1304,3831.3,3831.2,0.78398885]
[1761256207078,0.5305315,3831.3,3831.2,0.78398885]
[1761256207264,0.5305315,3831.3,3831.1,0.002]
[1761256207265,3.11702825,3831.2,3831.1,0.002]
[1761256207587,7.0849433,3831.2,3831.1,0.002]
[1761256207769,8.12664195,3831.2,3831.1,0.002]
[1761256207966,9.7774776,3831.2,3831.1,0.002]
[1761256208176,9.77725689,3831.2,3831.1,0.002]
[1761256208348,8.84035151,3831.2,3831.1,0.002]
[1761256208874,9.77725689,3831.2,3831.1,0.002]
[1761256209084,9.67268433,3831.2,3831.1,0.002]
[1761256209251,8.73577895,3831.2,3831.1,0.002]
[1761256209859,9.67268433,3831.2,3831.1,0.002]
[1761256210381,8.73577895,3831.2,3831.1,0.002]
[1761256212359,9.43667501,3831.2,3831.1,0.002]
[1761256216563,8.73577895,3831.2,3831.1,0.002]
[1761256216763,9.77727056,3831.2,3831.1,0.002]
[1761256217156,8.84036518,3831.2,3831.1,0.002]
[1761256217356,8.97076518,3831.2,3831.1,0.002]
[1761256217558,9.50509638,3831.1,3831.0,0.002]
[1761256217860,17.77836666,3831.1,3831.0,0.002]
[1761256218281,17.88295289,3831.1,3831.0,0.002]
[1761256218755,16.94604751,3831.1,3831.0,0.002]
[1761256218955,16.94604751,3831.1,3830.8,0.002]
[1761256218956,2.61035265,3830.9,3830.8,0.002]
[1761256219163,17.66167833,3830.9,3830.8,0.002]
[1761256219378,17.76067833,3830.9,3830.8,0.002]
[1761256219558,17.86527605,3830.9,3830.8,0.002]
[1761256220760,20.98782391,3830.9,3830.8,0.002]
[1761256222271,23.73482391,3830.9,3830.8,0.002]
[1761256223496,25.13217505,3830.9,3830.8,0.002]
[1761256224197,7.41950079,3830.8,3830.7,1e-08]
[1761256224528,10.68334647,3830.8,3830.7,1e-08]
[1761256226797,13.80589433,3830.8,3830.7,1e-08]
[1761256227094,12.08069761,3830.8,3830.7,1e-08]
[1761256227294,10.68334647,3830.8,3830.7,1e-08]
[1761256227677,10.78795157,3830.8,3830.7,1e-08]
[1761256228077,10.54232126,3830.4,3830.3,0.002]
[1761256228272,14.41123631,3830.4,3830.3,0.002]
[1761256228480,14.64063631,3830.4,3830.3,0.002]
[1761256228872,14.74524141,3830.4,3830.3,0.002]
[1761256229195,14.64063631,3830.4,3830.3,0.002]
[1761256229399,16.68196782,3830.4,3830.3,0.002]
[1761256233904,23.06796781,3830.4,3830.3,0.002]
[1761256234276,23.99915982,3830.4,3830.3,0.002]
[1761256235313,23.06796781,3830.4,3830.3,0.002]
[1761256235983,14.08825964,3830.4,3830.3,0.002]
[1761256236182,0.69916813,3830.9,3830.3,0.4665]
[1761256236400,3.306,3830.8,3830.3,0.57110565]
[1761256236691,3.306,3830.7,3830.6,2.61055709]
[1761256236895,0.50788,3831.4,3831.3,0.2202]
[1761256237092,0.001,3831.4,3831.3,0.2202]
[1761256237310,3.307,3831.4,3831.3,0.6847]
[1761256237614,5.917012,3831.4,3831.3,0.6847]
[1761256237790,7.27658192,3831.4,3831.3,0.6847]
[1761256238191,6.76970192,3831.4,3831.3,0.6847]
[1761256238701,7.27658192,3831.4,3831.3,0.6847]
[1761256239420,6.423892,3831.4,3831.3,0.6847]
[1761256242229,3.81388,3831.4,3831.3,0.6847]
[1761256244239,0.001,3831.4,3831.3,0.6847]
[1761256244414,3.306,3831.4,3831.3,0.6847]
[1761256244607,3.306,3831.4,3831.3,3.29478012]
[1761256245302,0.001,3831.4,3831.3,3.29478012]
[1761256245506,3.306,3831.4,3831.3,3.29478012]
[1761256246205,3.4364,3831.4,3831.3,3.29478012]
[1761256249551,3.4364,3831.4,3831.3,0.6847]
[1761256258565,3.4364,3831.4,3831.3,0.2202]
[1761256258763,3.4364,3831.4,3831.1,0.4645]
[1761256258937,3.306,3831.4,3831.2,0.4612]
[1761256259340,0.1304,3831.3,3831.2,0.4612]
[1761256260366,0.1304,3831.3,3831.0,0.2202]
[1761256260566,0.50688,3831.0,3830.4,0.002]
[1761256260869,3.11750524,3830.5,3830.4,0.002]
[1761256261031,6.55190524,3830.5,3830.4,0.002]
[1761256263273,7.55001223,3830.5,3830.4,0.002]
[1761256264732,7.11181223,3830.5,3830.4,0.002]
[1761256266285,8.63598468,3830.5,3830.4,0.002]
[1761256268658,8.19778468,3830.5,3830.4,0.002]
[1761256270857,8.63598468,3830.5,3830.4,0.002]
[1761256271059,8.19778468,3830.5,3830.4,0.002]
[1761256274271,8.19878468,3830.5,3830.4,0.002]
[1761256276059,8.63698468,3830.5,3830.4,0.002]
[1761256276270,8.19878468,3830.5,3830.4,0.002]
[1761256278602,14.58478467,3830.5,3830.4,0.002]
[1761256280598,15.02298467,3830.5,3830.4,0.002]
[1761256285191,15.7221528,3830.5,3830.4,0.002]
[1761256287394,15.02298467,3830.5,3830.4,0.002]
[1761256291312,15.15933894,3830.5,3830.4,0.002]
[1761256291707,16.55669008,3830.5,3830.4,0.002]
[1761256292486,15.15933894,3830.5,3830.4,0.002]
[1761256293886,2.6106934,3830.4,3830.3,0.002]
[1761256294212,8.23173447,3830.4,3830.3,0.002]
[1761256294416,14.61773446,3830.4,3830.3,0.002]
[1761256298704,8.23173447,3830.4,3830.3,0.002]
[1761256302616,5.86464155,3830.3,3830.0,0.002]
[1761256302818,10.6126932,3830.3,3830.0,0.002]
[1761256303120,12.48971237,3830.3,3830.0,0.002]
[1761256303321,10.6126932,3830.3,3830.0,0.002]
[1761256304000,10.7430932,3830.3,3830.0,0.002]
[1761256308833,10.2362132,3830.3,3830.0,0.002]
[1761256309019,3.11777788,3830.1,3830.0,0.002]
[1761256309218,14.30072151,3830.1,3830.0,0.002]
[1761256309433,14.73892151,3830.1,3830.0,0.002]
[1761256310431,14.30072151,3830.1,3830.0,0.002]
[1761256310732,14.73892151,3830.1,3830.0,0.002]
[1761256310974,0.55990699,3830.1,3830.0,0.4721]
[1761256311133,0.84572028,3830.5,3830.1,0.002]
[1761256311448,3.8655061,3830.4,3830.2,0.4701]
[1761256311650,0.5605061,3830.3,3830.2,3.0809292]
[1761256311858,0.001,3830.4,3830.3,2.83156155]
[1761256312016,0.001,3830.4,3830.3,3.30166155]
[1761256312221,3.305,3830.4,3830.3,3.30166155]
[1761256312558,0.001,3830.4,3830.3,3.30166155]
[1761256312755,3.305,3830.4,3830.3,3.30166155]
[1761256314621,0.001,3830.4,3830.3,3.30166155]
[1761256314850,0.001,3830.4,3830.3,4.08572212]
[1761256320044,0.001,3830.4,3830.3,7.91648231]
[1761256320943,0.001,3830.4,3830.3,4.21612212]
[1761256339187,0.001,3830.4,3830.1,0.002]
[1761256339389,0.72216402,3830.4,3830.1,0.002]
[1761256339565,2.61081078,3830.3,3830.1,0.002]
[1761256339766,0.2872,3830.3,3830.1,0.002]
[1761256339971,0.2872,3830.2,3830.1,0.002]
[1761256340987,3.5882,3830.2,3830.1,0.002]
[1761256341192,4.2516949,3830.2,3830.1,0.002]
[1761256341388,4.8133859,3830.2,3830.1,0.002]
[1761256342108,4.5261859,3830.2,3830.1,0.002]
[1761256343182,1.2251859,3830.2,3830.1,0.002]
[1761256343375,3.862691,3830.2,3830.1,0.002]
[1761256343581,3.862691,3830.2,3830.1,0.4455]
[1761256343994,3.862691,3830.2,3830.1,0.002]
[1761256344302,3.862691,3830.2,3830.1,0.4455]
[1761256345674,3.301,3830.2,3830.1,0.4455]
[1761256346099,0.001,3830.4,3830.3,2.61076155]
[1761256346301,3.302,3830.4,3830.3,2.61076155]
[1761256346469,0.001,3830.4,3830.3,3.05426155]
[1761256346869,0.001,3830.4,3830.3,3.15881361]
[1761256349110,0.001,3830.4,3830.3,3.28921361]
[1761256353425,0.001,3830.4,3830.3,4.84441361]
[1761256355416,0.001,3830.4,3830.3,8.14541361]
[1761256357650,0.001,3830.8,3830.7,2.61048894]
[1761256357836,0.001,3830.8,3830.7,9.03166332]
[1761256358041,0.001,3830.8,3830.7,9.60186332]
[1761256358349,0.001,3830.8,3830.7,9.70637522]
[1761256359150,0.001,3830.8,3830.7,10.21325522]
[1761256359329,0.001,3830.8,3830.7,9.57597522]
[1761256359749,0.001,3830.8,3830.7,6.27597522]
[1761256359951,0.001,3830.8,3830.7,9.57597522]
[1761256364448,0.001,3830.8,3830.7,11.13117522]
[1761256365291,0.001,3830.8,3830.7,11.63805522]
[1761256366461,0.001,3831.4,3830.7,11.63805522]
[1761256366462,0.001,3831.4,3831.2,5.73132263]
[1761256366659,0.001,3831.4,3831.2,11.02632263]
[1761256367169,0.001,3831.4,3831.2,11.13081815]
[1761256369358,0.001,3831.4,3831.2,11.26121815]
[1761256372877,0.001,3831.4,3831.2,7.52141815]
[1761256373079,0.001,3831.4,3831.2,10.82041815]
[1761256376204,0.001,3831.4,3831.2,11.26021815]
[1761256380389,0.001,3831.4,3831.2,10.82041815]
[1761256381190,0.001,3831.4,3831.2,7.52141815]
[1761256381415,0.001,3831.4,3831.2,7.59474825]
[1761256384787,0.001,3831.4,3831.2,4.29574825]
[1761256384982,0.001,3831.4,3831.2,7.59474825]
[1761256386318,0.001,3831.4,3831.2,11.15332263]
[1761256395758,0.001,3831.4,3831.2,10.71592263]
[1761256398157,0.001,3831.4,3831.2,11.15332263]
[1761256400188,1e-08,3831.9,3831.8,7.28611392]
[1761256400461,1e-08,3831.9,3831.8,11.02251392]
[1761256406467,1e-08,3832.3,3832.2,2.60946714]
[1761256406637,1e-08,3832.3,3832.2,9.24294152]
[1761256406969,1e-08,3832.3,3832.2,6.55756714]
[1761256407857,1e-08,3832.3,3832.2,6.12176714]
[1761256408253,1e-08,3832.3,3832.2,6.55756714]
[1761256408450,1e-08,3832.3,3832.2,2.60946714]
[1761256408634,0.28070001,3832.3,3832.2,5.90746714]
[1761256409945,0.28070001,3832.3,3832.2,7.46266714]
[1761256410178,0.28070001,3832.3,3832.2,7.59306714]
[1761256410868,1e-08,3832.3,3832.2,7.59306714]
[1761256411239,1e-08,3832.3,3832.2,8.06166714]
[1761256412252,1e-08,3832.3,3832.2,4.76366714]
[1761256412472,1e-08,3832.3,3832.2,8.06166714]
[1761256412689,1e-08,3832.3,3832.2,7.59306714]
[1761256412883,0.43120001,3832.3,3832.2,7.59306714]
[1761256414091,1e-08,3832.3,3832.2,7.59306714]
[1761256414294,1e-08,3832.3,3832.2,4.29506714]
[1761256414493,0.43120001,3832.3,3832.2,7.59306714]
[1761256415495,1e-08,3832.3,3832.2,7.59306714]
[1761256416994,1e-08,3832.3,3832.2,4.29506714]
[1761256417482,0.43120001,3832.3,3832.2,4.29506714]
[1761256418067,1e-08,3832.3,3832.2,4.29506714]
[1761256418268,0.43120001,3832.3,3832.2,4.29506714]
[1761256420265,1e-08,3832.3,3832.2,4.29506714]
[1761256420465,0.43120001,3832.3,3832.2,4.29506714]
[1761256420666,1e-08,3832.3,3832.2,4.29506714]
[1761256423608,1e-08,3832.3,3832.2,8.1188619]
[1761256423801,1e-08,3832.3,3832.2,8.5874619]
[1761256423994,1e-08,3832.3,3832.2,8.1188619]
[1761256424497,1e-08,3832.3,3832.2,8.5874619]
[1761256425295,1e-08,3832.3,3832.2,8.1188619]
[1761256425498,1e-08,3832.3,3832.2,8.3530619]
[1761256425699,0.2138,3833.0,3832.9,2.60899058]
[1761256426967,0.2138,3833.0,3832.9,2.82279058]
[1761256429500,0.2162,3833.0,3832.9,2.82279058]
[1761256435111,0.001,3833.1,3832.9,2.82279058]
[1761256435306,0.001,3833.1,3833.0,2.60892251]
[1761256435888,0.001,3833.1,3833.0,2.74172251]
[1761256438802,0.001,3833.1,3833.0,2.87212251]
[1761256439410,0.001,3833.1,3833.0,3.33292251]
[1761256439720,0.001,3833.1,3833.0,2.87212251]
[1761256440890,0.001,3833.1,3833.0,3.33292251]
[1761256441090,0.001,3833.1,3833.0,2.87212251]
[1761256441290,0.001,3833.1,3833.0,3.33292251]
[1761256441993,0.001,3833.1,3833.0,8.58151727]
[1761256442741,0.001,3833.1,3833.0,8.12071727]
[1761256442942,0.001,3833.1,3833.0,11.41771727]
[1761256443662,0.1,3833.1,3833.0,11.41771727]
[1761256444144,0.001,3833.1,3833.0,4.29692251]
[1761256444432,0.1,3833.1,3833.0,4.29692251]
[1761256445430,0.001,3833.1,3833.0,4.29692251]
[1761256445938,0.001,3833.1,3833.0,4.75772251]
[1761256446246,0.001,3833.1,3833.0,4.29692251]
[1761256452045,0.001,3833.1,3833.0,4.42732251]
[1761256452444,0.001,3833.1,3833.0,4.88812251]
[1761256454033,0.001,3833.1,3833.0,4.42732251]
[1761256455755,0.001,3833.1,3833.0,4.88812251]
[1761256459058,0.001,3833.1,3833.0,8.71191727]
[1761256461879,0.001,3833.1,3833.0,8.25111727]
[1761256462538,0.001,3833.1,3833.0,8.71191727]
[1761256466742,0.001,3833.1,3833.0,8.2854507]
[1761256468267,0.001,3833.1,3833.0,7.8246507]
[1761256469070,0.001,3833.1,3833.0,8.2770507]
[1761256470478,0.001,3833.1,3833.0,7.8246507]
[1761256470972,0.001,3833.1,3833.0,8.2770507]
[1761256476364,0.001,3833.1,3833.0,7.8246507]
[1761256476567,0.001,3833.1,3833.0,8.2770507]
[1761256477090,0.001,3833.1,3833.0,4.42732251]
[1761256477269,0.1,3833.1,3833.0,11.1206507]
[1761256477762,0.001,3833.1,3833.0,11.1206507]
[1761256478154,0.001,3833.1,3833.0,7.8246507]
[1761256478350,0.001,3833.1,3833.0,11.1206507]
[1761256478560,0.1,3833.1,3833.0,11.1206507]
[1761256478987,0.001,3833.1,3833.0,11.1206507]
[1761256488495,0.001,3833.1,3833.0,11.5730507]
[1761256488984,0.001,3833.1,3833.0,11.1206507]
[1761256491477,0.001,3833.1,3833.0,11.5730507]
[1761256494079,0.001,3833.1,3833.0,8.17572251]
[1761256494601,0.001,3833.1,3833.0,11.1206507]
[1761256494774,0.3117,3833.1,3833.0,11.1206507]
[1761256494975,0.001,3833.1,3833.0,11.1206507]
[1761256496318,0.001,3833.1,3832.6,0.002]
[1761256496533,0.35509501,3833.1,3832.6,0.002]
[1761256496680,0.67817931,3833.0,3832.6,0.002]
[1761256496876,0.50688,3832.8,3832.6,0.002]
[1761256497103,0.56317931,3832.7,3832.6,0.002]
[1761256497300,0.115,3832.7,3832.6,0.002]
[1761256497501,0.67817931,3832.7,3832.6,0.002]
[1761256498019,0.115,3832.7,3832.6,0.002]
[1761256499584,0.62188,3832.7,3832.6,0.002]
[1761256502090,0.62188,3832.7,3832.6,2.6111948]
[1761256502420,0.62188,3832.7,3832.6,0.002]
[1761256506333,0.75228,3832.7,3832.6,0.002]
[1761256507109,14.27974342,3832.7,3832.6,0.002]
[1761256507414,13.00470988,3832.7,3832.6,0.002]
[1761256507625,14.55990988,3832.7,3832.6,0.002]
[1761256507826,13.62101035,3832.7,3832.6,0.002]
[1761256508827,16.91701035,3832.7,3832.6,0.002]
[1761256509041,18.32535964,3832.7,3832.6,0.002]
[1761256509240,2.60933096,3832.4,3832.3,0.002]
[1761256509412,7.19004486,3832.4,3832.3,0.002]
[1761256510138,8.69375607,3832.4,3832.3,0.002]
[1761256511338,7.29460512,3832.4,3832.3,0.002]
[1761256512139,7.29460512,3832.4,3831.9,0.002]
[1761256512140,0.50688,3832.0,3831.9,0.002]
[1761256512313,18.30651723,3832.0,3831.9,0.002]
[1761256512513,18.42151723,3832.0,3831.9,0.002]
[1761256512921,18.52608104,3832.0,3831.9,0.002]
[1761256516557,20.48408104,3832.0,3831.9,0.002]
[1761256516714,23.08601167,3832.0,3831.9,0.002]
[1761256517059,23.21641167,3832.0,3831.9,0.002]
[1761256519263,24.1479949,3832.0,3831.9,0.002]
[1761256519760,21.12901167,3832.0,3831.9,0.002]
[1761256520073,22.1909949,3832.0,3831.9,0.002]
[1761256521395,21.25941167,3832.0,3831.9,0.002]
[1761256523557,21.25637539,3832.0,3831.9,0.002]
[1761256524252,22.65552634,3832.0,3831.9,0.002]
[1761256525208,21.25637539,3832.0,3831.9,0.002]
[1761256526399,4.67175144,3831.9,3831.8,0.002]
[1761256526582,8.2735515,3831.9,3831.8,0.002]
[1761256526972,11.67087969,3831.9,3831.8,0.002]
[1761256527172,11.77544924,3831.9,3831.8,0.002]
[1761256527381,12.38934804,3831.9,3831.8,0.002]
[1761256528500,11.77544924,3831.9,3831.8,0.002]
[1761256528800,4.19800663,3831.9,3831.8,0.002]
[1761256528997,4.893076,3831.9,3831.8,0.002]
[1761256529200,5.399956,3831.9,3831.8,0.002]
[1761256529376,5.29538645,3831.9,3831.8,0.002]
[1761256529584,1.49150645,3831.9,3831.8,0.002]
[1761256529899,7.39817789,3831.9,3831.8,0.002]
[1761256530105,9.69752187,3831.9,3831.8,0.002]
[1761256530898,12.78052186,3831.9,3831.8,0.002]
[1761256531103,16.07752186,3831.9,3831.8,0.002]
[1761256531266,16.07838571,3831.9,3831.8,0.002]
[1761256532206,15.14448484,3831.9,3831.8,0.002]
[1761256533207,16.54415113,3831.9,3831.8,0.002]
[1761256534001,10.63747969,3831.9,3831.8,0.002]
[1761256534200,13.93447969,3831.9,3831.8,0.002]
[1761256535211,12.5348134,3831.9,3831.8,0.002]
[1761256535683,13.93937983,3831.9,3831.8,0.002]
[1761256536086,15.14448484,3831.9,3831.8,0.002]
[1761256536902,12.14857832,3831.9,3831.8,0.4567]
[1761256538702,12.27897832,3831.9,3831.8,0.4567]
[1761256539218,12.27897832,3831.9,3831.8,0.002]
[1761256540089,14.88864976,3831.9,3831.8,0.002]
[1761256540929,11.59164976,3831.9,3831.8,0.002]
[1761256541310,13.48242086,3831.9,3831.8,0.002]
[1761256542115,13.48655745,3831.9,3831.8,0.002]
[1761256543331,14.89278635,3831.9,3831.8,0.002]
[1761256544313,13.48655745,3831.9,3831.8,0.002]
[1761256546734,13.48755745,3831.9,3831.8,0.002]
[1761256548537,10.19055745,3831.9,3831.8,0.002]
[1761256548704,13.48755745,3831.9,3831.8,0.002]
[1761256548907,10.87788601,3831.9,3831.8,0.4567]
[1761256549106,11.81544656,3831.9,3831.8,0.4567]
[1761256550129,11.81544656,3831.9,3831.8,0.002]
[1761256551242,14.425118,3831.9,3831.8,0.002]
[1761256553207,13.48755745,3831.9,3831.8,0.002]
[1761256553609,10.87788601,3831.9,3831.8,0.002]
[1761256553837,10.87788601,3831.9,3831.8,0.4567]
[1761256554136,11.81544656,3831.9,3831.8,0.4567]
[1761256554541,8.51844656,3831.9,3831.8,0.4567]
[1761256554738,11.81544656,3831.9,3831.8,0.4567]
[1761256555111,11.81544656,3831.9,3831.8,0.002]
[1761256556532,11.81544656,3831.9,3831.8,0.4567]
[1761256556735,11.81544656,3831.9,3831.8,0.002]
[1761256556945,6.94360601,3831.9,3831.8,3.06643954]
[1761256557140,10.23960601,3831.9,3831.8,3.06643954]
[1761256558856,6.94360601,3831.9,3831.8,3.06643954]
[1761256559021,10.23960601,3831.9,3831.8,3.06643954]
[1761256562966,0.56360602,3831.9,3831.8,3.06643954]
[1761256563157,3.297,3831.9,3831.8,3.06643954]
[1761256565365,3.80388,3831.9,3831.8,0.002]
[1761256565569,4.36626953,3831.9,3831.8,0.002]
[1761256565967,4.80299648,3831.9,3831.8,0.002]
[1761256566685,7.41266792,3831.9,3831.8,0.002]
[1761256566891,4.93339648,3831.9,3831.8,0.002]
[1761256567403,5.63720121,3831.9,3831.8,0.002]
[1761256567900,4.93339648,3831.9,3831.8,0.002]
[1761256568062,7.54306792,3831.9,3831.8,0.002]
[1761256568399,8.24687265,3831.9,3831.8,0.002]
[1761256569195,7.54306792,3831.9,3831.8,0.002]
[1761256569360,8.24687265,3831.9,3831.8,0.002]
[1761256570193,5.63720121,3831.9,3831.8,0.002]
[1761256572495,8.24687265,3831.9,3831.8,0.002]
[1761256573311,5.63720121,3831.9,3831.8,0.002]
[1761256573492,4.93339648,3831.9,3831.8,0.002]
[1761256573699,7.54306792,3831.9,3831.8,0.002]
[1761256574882,7.81496792,3831.9,3831.8,0.002]
[1761256575283,7.71526792,3831.9,3831.8,0.002]
[1761256575678,7.54306792,3831.9,3831.8,0.002]
[1761256577324,4.93339648,3831.9,3831.8,0.002]
[1761256579114,8.48062847,3831.9,3831.8,0.002]
[1761256579499,7.54306792,3831.9,3831.8,0.002]
[1761256579695,8.48062847,3831.9,3831.8,0.002]
[1761256585448,7.54306792,3831.9,3831.8,0.002]
[1761256589344,8.48062847,3831.9,3831.8,0.002]
[1761256589836,8.48062847,3831.9,3831.8,0.4506]
[1761256590134,8.48062847,3831.9,3831.8,0.002]
[1761256592242,8.48062847,3831.9,3831.8,0.002]
[1761256594260,7.54306792,3831.9,3831.8,0.002]
[1761256598757,7.54306792,3831.9,3831.8,0.4506]
[1761256599264,7.54306792,3831.9,3831.8,0.002]
[1761256602672,7.54443163,3831.9,3831.8,0.002]
[1761256606387,8.95066053,3831.9,3831.8,0.002]
[1761256613054,10.50586053,3831.9,3831.8,0.002]
[1761256615397,9.40672775,3831.9,3831.8,0.002]
[1761256615584,9.23592775,3831.9,3831.8,0.002]
[1761256616173,13.76464696,3831.9,3831.8,0.002]
[1761256622697,12.625524,3831.9,3831.8,0.002]
[1761256622866,3.11675576,3831.6,3831.5,0.002]
[1761256623068,11.77880525,3831.6,3831.5,0.002]
[1761256623271,11.87780525,3831.6,3831.5,0.002]
[1761256625785,16.87656898,3831.6,3831.5,0.002]
[1761256626105,4.67229638,3831.1,3831.0,1e-08]
[1761256626276,13.75350355,3831.1,3831.0,1e-08]
[1761256627796,11.87814587,3831.1,3831.0,1e-08]
[1761256629196,11.87814587,3831.1,3830.4,0.002]
[1761256629197,3.11723265,3830.9,3830.4,0.002]
[1761256629402,5.36658589,3830.9,3830.4,0.002]
[1761256629570,5.46558589,3830.9,3830.4,0.002]